fUST/lending_fUST_20260303
["ID","MTS","AMOUNT","RATE_DAILY","PERIOD"]
[407171430,1772467856922,-672.97,0.00013698,2]
[407171432,1772467856931,-500.0,0.00013698,2]
[407171434,1772467856942,-340.73248558,0.00013698,2]
[407171436,1772467856952,-500.0,0.00013698,2]
[407171438,1772467856961,-15433.6,0.00013698,2]
[407171440,1772467856971,-1317.72,0.00013698,2]
[407171442,1772467856980,-6073.72,0.00013698,2]
[407171444,1772467856990,-500.0,0.00013698,2]
[407171446,1772467856999,-510.88,0.00013698,2]
[407171448,1772467857009,-963.71,0.00013698,2]
[407171450,1772467857018,-500.0,0.00013698,2]
[407171452,1772467857028,-500.0,0.00013698,2]
[407171453,1772467857037,-500.0,0.00013698,2]
[407171455,1772467857047,-590.59579087,0.00013698,2]
[407171458,1772467857057,-500.0,0.00013698,2]
[407171460,1772467857067,-1559.94,0.00013698,2]
[407171462,1772467857078,-772.02,0.00013698,2]
[407171464,1772467857087,-500.0,0.00013698,2]
[407171466,1772467857097,-500.0,0.00013698,2]
[407171468,1772467857106,-500.0,0.00013698,2]
[407171469,1772467857116,-1121.65,0.00013698,2]
[407171471,1772467857126,-3576.66,0.00013698,2]
[407171473,1772467857135,-15205.13,0.00013698,2]
[407171475,1772467857145,-836.93,0.00013698,2]
[407171477,1772467857155,-500.0,0.00013698,2]
[407171479,1772467857165,-500.0,0.00013698,2]
[407171480,1772467857174,-1997.66,0.00013698,2]
[407171481,1772467857183,-1305.39,0.00013698,2]
[407171482,1772467857193,-500.0,0.00013698,2]
[407171483,1772467857202,-500.0,0.00013698,2]
[407171484,1772467857211,-1405.01,0.00013698,2]
[407171485,1772467857221,-1143.17,0.00013698,2]
[407171486,1772467857231,-500.0,0.00013698,2]
[407171487,1772467857241,-3320.0,0.00013698,2]
[407171488,1772467857250,-500.0,0.00013698,2]
[407171489,1772467857259,-500.0,0.00013698,2]
[407171491,1772467857268,-209.08948674,0.00013698,2]
[407171493,1772467857277,-7049.25,0.00013698,2]
[407171495,1772467857287,-500.0,0.00013698,2]
[407171497,1772467857298,-500.0,0.00013698,2]
[407171499,1772467857306,-500.0,0.00013698,2]
[407171501,1772467857315,-1319.86,0.00013698,2]
[407171503,1772467857325,-500.0,0.00013698,2]
[407171505,1772467857334,-528.65,0.00013698,2]
[407171507,1772467857343,-500.0,0.00013698,2]
[407171509,1772467857353,-1001.6,0.00013698,2]
[407171511,1772467857362,-1192.35,0.00013698,2]
[407171513,1772467857372,-500.0,0.00013698,2]
[407171515,1772467857381,-500.0,0.00013698,2]
[407171517,1772467857390,-500.0,0.00013698,2]
[407171519,1772467857399,-1535.11,0.00013698,2]
[407171521,1772467857409,-659.26,0.00013698,2]
[407171523,1772467857419,-500.0,0.00013698,2]
[407171525,1772467857429,-500.0,0.00013698,2]
[407171527,1772467857439,-500.0,0.00013698,2]
[407171529,1772467857448,-1702.61,0.00013698,2]
[407171531,1772467857458,-1776.47,0.00013698,2]
[407171533,1772467857467,-500.0,0.00013698,2]
[407171535,1772467857477,-500.0,0.00013698,2]
[407171537,1772467857487,-574.9,0.00013698,2]
[407171539,1772467857496,-500.0,0.00013698,2]
[407171541,1772467857506,-500.0,0.00013698,2]
[407171543,1772467857516,-1386.77,0.00013698,2]
[407171545,1772467857525,-500.0,0.00013698,2]
[407171547,1772467857535,-500.0,0.00013698,2]
[407171549,1772467857544,-2402.9,0.00013698,2]
[407171551,1772467857554,-500.0,0.00013698,2]
[407171553,1772467857565,-500.0,0.00013698,2]
[407171555,1772467857575,-1494.5,0.00013698,2]
[407171557,1772467857584,-500.0,0.00013698,2]
[407171559,1772467857593,-500.0,0.00013698,2]
[407171561,1772467857602,-500.0,0.00013698,2]
[407171563,1772467857612,-500.0,0.00013698,2]
[407171565,1772467857622,-601.47,0.00013698,2]
[407171567,1772467857631,-661.3,0.00013698,2]
[407171569,1772467857640,-2898.16,0.00013698,2]
[407171571,1772467857651,-1935.72,0.00013698,2]
[407171573,1772467857661,-500.0,0.00013698,2]
[407171575,1772467857671,-7457.25,0.00013698,2]
[407171577,1772467857682,-500.0,0.00013698,2]
[407171579,1772467857692,-2760.0,0.00013698,2]
[407171581,1772467857701,-500.0,0.00013698,2]
[407171583,1772467857711,-2439.87,0.00013698,2]
[407171585,1772467857720,-942.36,0.00013698,2]
[407171587,1772467857729,-500.0,0.00013698,2]
[407171589,1772467857739,-500.0,0.00013698,2]
[407171591,1772467857749,-500.0,0.00013698,2]
[407171593,1772467857761,-500.0,0.00013698,2]
[407171595,1772467857771,-846.79,0.00013698,2]
[407171597,1772467857780,-500.0,0.00013698,2]
[407171599,1772467857790,-556.75,0.00013698,2]
[407171601,1772467857799,-8895.08,0.00013698,2]
[407171603,1772467857808,-500.0,0.00013698,2]
[407171605,1772467857818,-500.0,0.00013698,2]
[407171607,1772467857827,-7725.73,0.00013698,2]
[407171609,1772467857838,-3187.79,0.00013698,2]
[407171611,1772467857848,-489.63867,0.00013698,2]
[407171613,1772467857857,-500.0,0.00013698,2]
[407171615,1772467857867,-4829.9,0.00013698,2]
[407171617,1772467857877,-500.0,0.00013698,2]
[407171619,1772467857886,-500.0,0.00013698,2]
[407171621,1772467857895,-500.0,0.00013698,2]
[407171623,1772467857905,-500.0,0.00013698,2]
[407171625,1772467857914,-500.0,0.00013698,2]
[407171627,1772467857925,-525.24218135,0.00013698,2]
[407171629,1772467857935,-500.0,0.00013698,2]
[407171631,1772467857944,-500.0,0.00013698,2]
[407171633,1772467857954,-835.07,0.00013698,2]
[407171635,1772467857963,-4498.78,0.00013698,2]
[407171637,1772467857973,-500.0,0.00013698,2]
[407171638,1772467857983,-500.0,0.00013698,2]
[407171641,1772467857993,-500.0,0.00013698,2]
[407171642,1772467858002,-1805.79,0.00013698,2]
[407171645,1772467858013,-500.0,0.00013698,2]
[407171647,1772467858022,-1198.2,0.00013698,2]
[407171649,1772467858033,-721.33,0.00013698,2]
[407171651,1772467858043,-500.0,0.00013698,2]
[407171653,1772467858052,-502.30564558,0.00013698,2]
[407171655,1772467858061,-500.0,0.00013698,2]
[407171657,1772467858071,-731.52,0.00013698,2]
[407171659,1772467858081,-2009.57,0.00013698,2]
[407171661,1772467858090,-500.0,0.00013698,2]
[407171663,1772467858100,-1176.25,0.00013698,2]
[407171665,1772467858110,-500.0,0.00013698,2]
[407171667,1772467858119,-500.0,0.00013698,2]
[407171669,1772467858129,-500.0,0.00013698,2]
[407171671,1772467858139,-500.0,0.00013698,2]
[407171673,1772467858148,-500.0,0.00013698,2]
[407171675,1772467858159,-500.0,0.00013698,2]
[407171677,1772467858169,-517.65655185,0.00013698,2]
[407171679,1772467858179,-345.85715121,0.00013698,2]
[407171681,1772467858188,-1222.11,0.00013698,2]
[407171683,1772467858198,-500.0,0.00013698,2]
[407171685,1772467858208,-3418.62,0.00013698,2]
[407171687,1772467858218,-787.07,0.00013698,2]
[407171689,1772467858227,-500.0,0.00013698,2]
[407171691,1772467858236,-621.2,0.00013698,2]
[407171693,1772467858246,-500.0,0.00013698,2]
[407171695,1772467858256,-1658.72,0.00013698,2]
[407171697,1772467858265,-523.01,0.00013698,2]
[407171699,1772467858275,-500.0,0.00013698,2]
[407171701,1772467858285,-1742.44,0.00013698,2]
[407171703,1772467858294,-657.81,0.00013698,2]
[407171705,1772467858304,-1242.22,0.00013698,2]
[407171707,1772467858313,-500.0,0.00013698,2]
[407171709,1772467858323,-500.0,0.00013698,2]
[407171722,1772467858442,-500.0,0.00013698,2]
[407171725,1772467858468,-577.49419968,0.00013698,2]
[407171727,1772467858481,-500.0,0.00013698,2]
[407171729,1772467858492,-1641.28,0.00013698,2]
[407171731,1772467858503,-911.6,0.00013698,2]
[407171733,1772467858516,-516.25130386,0.00013698,2]
[407171735,1772467858526,-2058.89,0.00013698,2]
[407171737,1772467858536,-876.18,0.00013698,2]
[407171739,1772467858546,-500.0,0.00013698,2]
[407171741,1772467858555,-500.0,0.00013698,2]
[407171743,1772467858567,-1951.76,0.00013698,2]
[407171745,1772467858579,-500.0,0.00013698,2]
[407171747,1772467858589,-1896.9,0.00013698,2]
[407171749,1772467858599,-1263.9,0.00013698,2]
[407171751,1772467858608,-1215.69,0.00013698,2]
[407171753,1772467858618,-2395.03,0.00013698,2]
[407171755,1772467858627,-506.63306026,0.00013698,2]
[407171757,1772467858637,-500.0,0.00013698,2]
[407171759,1772467858647,-522.09742987,0.00013698,2]
[407171762,1772467858656,-1181.23,0.00013698,2]
[407171763,1772467858667,-2960.58,0.00013698,2]
[407171765,1772467858677,-886.66,0.00013698,2]
[407171767,1772467858687,-500.0,0.00013698,2]
[407171769,1772467858696,-2978.1,0.00013698,2]
[407171771,1772467858706,-1708.92,0.00013698,2]
[407171774,1772467858716,-5165.28,0.00013698,2]
[407171776,1772467858726,-500.0,0.00013698,2]
[407171777,1772467858735,-575.46,0.00013698,2]
[407171779,1772467858744,-3011.73,0.00013698,2]
[407171781,1772467858758,-500.0,0.00013698,2]
[407171784,1772467858770,-1096.8,0.00013698,2]
[407171785,1772467858780,-1096.8,0.00013698,2]
[407171787,1772467858790,-1096.8,0.00013698,2]
[407171790,1772467858800,-1096.8,0.00013698,2]
[407171791,1772467858810,-1096.8,0.00013698,2]
[407171793,1772467858819,-1096.8,0.00013698,2]
[407171796,1772467858832,-1096.8,0.00013698,2]
[407171798,1772467858842,-1096.8,0.00013698,2]
[407171800,1772467858852,-1096.8,0.00013698,2]
[407171802,1772467858862,-1096.8,0.00013698,2]
[407171803,1772467858872,-1096.8,0.00013698,2]
[407171805,1772467858883,-1096.8,0.00013698,2]
[407171808,1772467858893,-1096.8,0.00013698,2]
[407171810,1772467858903,-1096.8,0.00013698,2]
[407171811,1772467858909,-1096.8,0.00013698,2]
[407171813,1772467858917,-1096.8,0.00013698,2]
[407171815,1772467858925,-1096.8,0.00013698,2]
[407171817,1772467858932,-1096.8,0.00013698,2]
[407171819,1772467858939,-1096.8,0.00013698,2]
[407171821,1772467858947,-1096.8,0.00013698,2]
[407171823,1772467858956,-1096.8,0.00013698,2]
[407171825,1772467858964,-1096.8,0.00013698,2]
[407171827,1772467858972,-1096.8,0.00013698,2]
[407171829,1772467858982,-1096.8,0.00013698,2]
[407171831,1772467858991,-1096.8,0.00013698,2]
[407171833,1772467859000,-1096.8,0.00013698,2]
[407171835,1772467859010,-1096.8,0.00013698,2]
[407171837,1772467859019,-1096.8,0.00013698,2]
[407171839,1772467859028,-1096.8,0.00013698,2]
[407171841,1772467859037,-1096.8,0.00013698,2]
[407171843,1772467859047,-1096.8,0.00013698,2]
[407171845,1772467859056,-1096.8,0.00013698,2]
[407171848,1772467859066,-1096.8,0.00013698,2]
[407171849,1772467859075,-1096.8,0.00013698,2]
[407171852,1772467859085,-1096.8,0.00013698,2]
[407171854,1772467859095,-1096.8,0.00013698,2]
[407171856,1772467859105,-1096.8,0.00013698,2]
[407171857,1772467859115,-1160.18,0.00013698,2]
[407171860,1772467859124,-156.0,0.00013699,2]
[407171862,1772467859133,-2823.1975929,0.00013699,2]
[407171863,1772467859143,-1402.741491,0.00013699,2]
[407171866,1772467859153,-1000.0,0.00013699,2]
[407171868,1772467859162,-151.0,0.00013699,2]
[407171870,1772467859172,-151.0,0.00013699,2]
[407171872,1772467859183,-151.0,0.00013699,2]
[407171874,1772467859192,-151.0,0.00013699,2]
[407171876,1772467859202,-151.0,0.00013699,2]
[407171878,1772467859211,-151.0,0.00013699,2]
[407171880,1772467859220,-151.0,0.00013699,2]
[407171882,1772467859230,-11504.5913384,0.00013699,2]
[407171884,1772467859239,-500.77901045,0.00013699,2]
[407171886,1772467859249,-500.0,0.00013699,2]
[407171888,1772467859258,-500.0,0.00013699,2]
[407171890,1772467859267,-500.0,0.00013699,2]
[407171892,1772467859276,-500.0,0.00013699,2]
[407171893,1772467859285,-500.0,0.00013699,2]
[407171895,1772467859296,-500.0,0.00013699,2]
[407171898,1772467859306,-161.40520422,0.00013699,2]
[407171900,1772467859315,-500.0,0.00013699,2]
[407171902,1772467859325,-166.3436363,0.00013699,2]
[407171903,1772467859334,-500.0,0.00013699,2]
[407171906,1772467859344,-500.53594277,0.00013699,2]
[407171907,1772467859353,-500.0,0.00013699,2]
[407171909,1772467859363,-500.0,0.00013699,2]
[407171911,1772467859370,-500.0,0.00013699,2]
[407171913,1772467859379,-500.0,0.00013699,2]
[407171915,1772467859388,-500.71049413,0.00013699,2]
[407171917,1772467859397,-500.0,0.00013699,2]
[407171919,1772467859407,-500.54697249,0.00013699,2]
[407171921,1772467859416,-500.0,0.00013699,2]
[407171923,1772467859426,-150.52625228,0.00013699,2]
[407171925,1772467859435,-500.0,0.00013699,2]
[407171927,1772467859444,-500.0,0.00013699,2]
[407171929,1772467859454,-501.4951163,0.00013699,2]
[407171931,1772467859463,-500.0,0.00013699,2]
[407171933,1772467859473,-500.0,0.00013699,2]
[407171935,1772467859484,-500.0,0.00013699,2]
[407171937,1772467859493,-569.91170694,0.00013699,2]
[407171939,1772467859502,-500.0,0.00013699,2]
[407171941,1772467859512,-500.0,0.00013699,2]
[407171943,1772467859521,-500.0,0.00013699,2]
[407171945,1772467859531,-500.0,0.00013699,2]
[407171947,1772467859541,-500.0,0.00013699,2]
[407171949,1772467859550,-500.0,0.00013699,2]
[407171951,1772467859559,-562.10083923,0.00013699,2]
[407171953,1772467859569,-158.50070886,0.00013699,2]
[407171955,1772467859578,-244.87411703,0.00013699,2]
[407171957,1772467859589,-500.0,0.00013699,2]
[407171959,1772467859598,-500.0,0.00013699,2]
[407171961,1772467859608,-500.0,0.00013699,2]
[407171963,1772467859617,-500.73757403,0.00013699,2]
[407171965,1772467859627,-500.0,0.00013699,2]
[407171967,1772467859637,-500.0,0.00013699,2]
[407171969,1772467859647,-631.61728824,0.00013699,2]
[407171971,1772467859657,-500.30981655,0.00013699,2]
[407171973,1772467859667,-500.0,0.00013699,2]
[407171975,1772467859676,-500.0,0.00013699,2]
[407171977,1772467859687,-500.0,0.00013699,2]
[407171979,1772467859696,-500.0,0.00013699,2]
[407171981,1772467859704,-500.0,0.00013699,2]
[407171983,1772467859714,-592.80334093,0.00013699,2]
[407171985,1772467859723,-500.0,0.00013699,2]
[407171987,1772467859732,-500.0,0.00013699,2]
[407171989,1772467859741,-500.0,0.00013699,2]
[407171991,1772467859752,-500.0,0.00013699,2]
[407171993,1772467859765,-500.0,0.00013699,2]
[407171995,1772467859775,-501.69943845,0.00013699,2]
[407171997,1772467859785,-500.52345893,0.00013699,2]
[407171999,1772467859795,-500.46554818,0.00013699,2]
[407172001,1772467859806,-200.20317056,0.00013699,2]
[407172004,1772467859816,-379.83211991,0.00013699,2]
[407172006,1772467859826,-500.0,0.00013699,2]
[407172008,1772467859837,-501.17298428,0.00013699,2]
[407172010,1772467859847,-500.30447913,0.00013699,2]
[407172012,1772467859857,-500.0,0.00013699,2]
[407172014,1772467859866,-500.0,0.00013699,2]
[407172016,1772467859876,-500.71919964,0.00013699,2]
[407172018,1772467859885,-500.0,0.00013699,2]
[407172020,1772467859895,-500.0,0.00013699,2]
[407172022,1772467859905,-501.58014901,0.00013699,2]
[407172024,1772467859914,-500.0,0.00013699,2]
[407172026,1772467859924,-500.0,0.00013699,2]
[407172028,1772467859934,-547.44773353,0.00013699,2]
[407172030,1772467859944,-500.71834181,0.00013699,2]
[407172032,1772467859953,-488.34359277,0.00013699,2]
[407172034,1772467859963,-533.89221261,0.00013699,2]
[407172036,1772467859973,-500.0,0.00013699,2]
[407172038,1772467859982,-228.06268375,0.00013699,2]
[407172040,1772467859992,-151.0,0.000137,2]
[407172042,1772467860002,-151.0,0.000137,2]
[407172044,1772467860012,-151.0,0.000137,2]
[407172046,1772467860023,-151.0,0.000137,2]
[407172048,1772467860033,-151.0,0.000137,2]
[407172050,1772467860044,-151.0,0.000137,2]
[407172052,1772467860055,-150.0,0.000137,2]
[407172054,1772467860065,-151.0,0.000137,2]
[407172056,1772467860077,-151.0,0.000137,2]
[407172058,1772467860089,-151.0,0.000137,2]
[407172060,1772467860100,-151.0,0.000137,2]
[407172062,1772467860111,-151.0,0.000137,2]
[407172064,1772467860122,-595.2661112,0.00013719,2]
[407172066,1772467860133,-343.95828869,0.00013725,2]
[407172068,1772467860143,-166.0,0.00013731,2]
[407172070,1772467860154,-638.0,0.0001376,2]
[407172072,1772467860164,-1388.0,0.0001376,2]
[407172074,1772467860175,-730.0,0.0001376,2]
[407172076,1772467860185,-432.0,0.0001376,2]
[407172078,1772467860196,-569.335,0.0001376,2]
[407172080,1772467860206,-786.0,0.000138,2]
[407172082,1772467860216,-168.0,0.00013818,2]
[407172084,1772467860226,-1000.0,0.00013821,2]
[407172086,1772467860236,-462.3638839,0.00013821,2]
[407172088,1772467860246,-566.43523267,0.00013821,2]
[407172090,1772467860256,-1000.0,0.00013821,2]
[407172092,1772467860265,-1000.0,0.00013821,2]
[407172094,1772467860275,-1000.0,0.00013821,2]
[407172111,1772467860426,-720.0,0.00013832,2]
[407172114,1772467860436,-402.26777377,0.00013858,2]
[407172116,1772467860447,-11340.96473881,0.00013872,2]
[407172118,1772467860456,-2600.0,0.000139,2]
[407172120,1772467860466,-300.54408615,0.00013937,2]
[407172122,1772467860478,-500.0,0.00013972,2]
[407172124,1772467860489,-29572.34338834,0.00013972,2]
[407172126,1772467860499,-570.71501749,0.00013972,2]
[407172128,1772467860510,-500.0,0.00013972,2]
[407172130,1772467860519,-500.0,0.00013972,2]
[407172132,1772467860529,-500.0,0.00013972,2]
[407172134,1772467860539,-500.0,0.00013972,2]
[407172136,1772467860549,-500.0,0.00013972,2]
[407172138,1772467860559,-500.0,0.00013972,2]
[407172140,1772467860568,-1128.6,0.00013972,2]
[407172142,1772467860578,-500.0,0.00013972,2]
[407172144,1772467860587,-500.0,0.00013972,2]
[407172146,1772467860597,-500.0,0.00013972,2]
[407172148,1772467860607,-1023.57,0.00013972,2]
[407172150,1772467860616,-500.0,0.00013972,2]
[407172152,1772467860626,-500.0,0.00013972,2]
[407172154,1772467860636,-500.0,0.00013972,2]
[407172156,1772467860646,-500.0,0.00013972,2]
[407172158,1772467860655,-500.0,0.00013972,2]
[407172160,1772467860666,-2633.23,0.00013972,2]
[407172162,1772467860678,-674.22,0.00013972,2]
[407172164,1772467860687,-666.31,0.00013972,2]
[407172166,1772467860698,-500.0,0.00013972,2]
[407172168,1772467860708,-500.0,0.00013972,2]
[407172170,1772467860719,-500.0,0.00013972,2]
[407172172,1772467860730,-516.66,0.00013972,2]
[407172174,1772467860741,-500.0,0.00013972,2]
[407172176,1772467860753,-577.85,0.00013972,2]
[407172178,1772467860762,-500.0,0.00013972,2]
[407172180,1772467860772,-507.48389307,0.00013972,2]
[407172182,1772467860781,-500.0,0.00013972,2]
[407172184,1772467860793,-500.0,0.00013972,2]
[407172186,1772467860802,-843.39,0.00013972,2]
[407172188,1772467860811,-500.0,0.00013972,2]
[407172189,1772467860820,-500.0,0.00013972,2]
[407172192,1772467860831,-500.0,0.00013972,2]
[407172194,1772467860842,-788.42,0.00013972,2]
[407172196,1772467860852,-500.0,0.00013972,2]
[407172197,1772467860862,-2412.91,0.00013972,2]
[407172200,1772467860872,-500.0,0.00013972,2]
[407172202,1772467860882,-500.0,0.00013972,2]
[407172204,1772467860891,-607.79910794,0.00013972,2]
[407172206,1772467860901,-500.0,0.00013972,2]
[407172208,1772467860910,-1233.69,0.00013972,2]
[407172210,1772467860920,-500.0,0.00013972,2]
[407172212,1772467860930,-500.0,0.00013972,2]
[407172214,1772467860939,-500.0,0.00013972,2]
[407172216,1772467860949,-1962.1,0.00013972,2]
[407172218,1772467860959,-1747.07,0.00013972,2]
[407172220,1772467860971,-500.0,0.00013972,2]
[407172222,1772467860980,-500.0,0.00013972,2]
[407172224,1772467860989,-500.0,0.00013972,2]
[407172226,1772467860999,-500.0,0.00013972,2]
[407172228,1772467861009,-500.0,0.00013972,2]
[407172230,1772467861019,-500.0,0.00013972,2]
[407172232,1772467861028,-594.80131435,0.00013972,2]
[407172234,1772467861037,-500.0,0.00013972,2]
[407172236,1772467861046,-500.0,0.00013972,2]
[407172238,1772467861055,-500.0,0.00013972,2]
[407172240,1772467861066,-500.0,0.00013972,2]
[407172242,1772467861075,-595.99,0.00013972,2]
[407172244,1772467861085,-573.14,0.00013972,2]
[407172246,1772467861094,-500.0,0.00013972,2]
[407172248,1772467861103,-355.48928077,0.00013972,2]
[407172250,1772467861113,-1000.0,0.00013972,2]
[407172252,1772467861123,-500.63162026,0.00013972,2]
[407172254,1772467861132,-1243.55,0.00013972,2]
[407172256,1772467861142,-500.0,0.00013972,2]
[407172258,1772467861151,-688.96,0.00013972,2]
[407172260,1772467861161,-665.89,0.00013972,2]
[407172262,1772467861171,-600.66,0.00013972,2]
[407172264,1772467861181,-500.0,0.00013972,2]
[407172266,1772467861192,-500.0,0.00013972,2]
[407172268,1772467861202,-500.0,0.00013972,2]
[407172270,1772467861211,-781.39,0.00013972,2]
[407172272,1772467861221,-500.0,0.00013972,2]
[407172274,1772467861231,-500.0,0.00013972,2]
[407172276,1772467861240,-500.0,0.00013972,2]
[407172278,1772467861250,-3567.99,0.00013972,2]
[407172280,1772467861259,-500.0,0.00013972,2]
[407172282,1772467861269,-500.0,0.00013972,2]
[407172284,1772467861280,-1208.88,0.00013972,2]
[407172286,1772467861289,-1627.4,0.00013972,2]
[407172288,1772467861299,-549.91,0.00013972,2]
[407172290,1772467861308,-1643.84,0.00013972,2]
[407172292,1772467861318,-500.0,0.00013972,2]
[407172294,1772467861328,-930.92,0.00013972,2]
[407172296,1772467861338,-500.0,0.00013972,2]
[407172298,1772467861347,-500.0,0.00013972,2]
[407172300,1772467861358,-1557.35,0.00013972,2]
[407172302,1772467861367,-500.0,0.00013972,2]
[407172304,1772467861377,-500.0,0.00013972,2]
[407172305,1772467861386,-663.3,0.00013972,2]
[407172307,1772467861395,-1155.7,0.00013972,2]
[407172309,1772467861404,-1154.62,0.00013972,2]
[407172311,1772467861413,-1411.43,0.00013972,2]
[407172313,1772467861425,-500.0,0.00013972,2]
[407172315,1772467861452,-830.49,0.00013972,2]
[407172317,1772467861463,-500.0,0.00013972,2]
[407172320,1772467861474,-500.0,0.00013972,2]
[407172322,1772467861488,-500.0,0.00013972,2]
[407172324,1772467861498,-500.0,0.00013972,2]
[407172326,1772467861508,-999.82,0.00013972,2]
[407172328,1772467861519,-500.0,0.00013972,2]
[407172329,1772467861529,-500.0,0.00013972,2]
[407172331,1772467861539,-494.87947284,0.00013972,2]
[407172333,1772467861549,-768.61,0.00013972,2]
[407172335,1772467861559,-754.46,0.00013972,2]
[407172337,1772467861569,-500.0,0.00013972,2]
[407172339,1772467861579,-622.75,0.00013972,2]
[407172341,1772467861590,-1495.58,0.00013972,2]
[407172343,1772467861600,-2685.5,0.00013972,2]
[407172345,1772467861613,-613.47,0.00013972,2]
[407172347,1772467861622,-500.0,0.00013972,2]
[407172349,1772467861632,-500.0,0.00013972,2]
[407172351,1772467861642,-542.4001951,0.00013972,2]
[407172353,1772467861652,-2434.62,0.00013972,2]
[407172355,1772467861662,-500.0,0.00013972,2]
[407172357,1772467861671,-500.0,0.00013972,2]
[407172359,1772467861680,-1021.1,0.00013972,2]
[407172361,1772467861690,-476.60265397,0.00013972,2]
[407172363,1772467861699,-500.0,0.00013972,2]
[407172365,1772467861709,-500.0,0.00013972,2]
[407172367,1772467861718,-2032.47,0.00013972,2]
[407172369,1772467861730,-932.51,0.00013972,2]
[407172371,1772467861740,-2767.45,0.00013972,2]
[407172373,1772467861750,-1142.64,0.00013972,2]
[407172375,1772467861760,-500.0,0.00013972,2]
[407172377,1772467861771,-500.0,0.00013972,2]
[407172378,1772467861779,-500.0,0.00013972,2]
[407172380,1772467861788,-500.0,0.00013972,2]
[407172382,1772467861797,-500.0,0.00013972,2]
[407172384,1772467861807,-500.0,0.00013972,2]
[407172386,1772467861816,-500.0,0.00013972,2]
[407172388,1772467861826,-628.98,0.00013972,2]
[407172390,1772467861838,-1130.03,0.00013972,2]
[407172392,1772467861847,-500.0,0.00013972,2]
[407172394,1772467861856,-500.0,0.00013972,2]
[407172396,1772467861866,-558.92,0.00013972,2]
[407172398,1772467861876,-500.0,0.00013972,2]
[407172400,1772467861886,-5002.54,0.00013972,2]
[407172402,1772467861896,-500.0,0.00013972,2]
[407172404,1772467861906,-2088.92667322,0.00013972,2]
[407172486,1772467862724,-74.00332678,0.00013972,2]
[407172488,1772467862735,-247.41037532,0.00013972,2]
[407172490,1772467862745,-65.16133336,0.00013972,2]
[407172500,1772467862840,-468.01866664,0.00013972,2]
[407172502,1772467862850,-634.5431427,0.00013972,2]
[407172504,1772467862861,-478.14985278,0.00013972,2]
[407172506,1772467862873,-55.76730168,0.00013972,2]
[407172508,1772467862883,-342.02470464,0.00013972,2]
[407172510,1772467862892,-500.0,0.00013972,2]
[407172512,1772467862902,-500.0,0.00013972,2]
[407172514,1772467862912,-515.53,0.00013972,2]
[407172516,1772467862921,-500.0,0.00013972,2]
[407172518,1772467862947,-500.0,0.00013972,2]
[407172520,1772467862958,-615.5,0.00013972,2]
[407172522,1772467862968,-1833.1,0.00013972,2]
[407172524,1772467862977,-500.0,0.00013972,2]
[407172525,1772467862987,-500.0,0.00013972,2]
[407172527,1772467862996,-740.09,0.00013972,2]
[407172529,1772467863006,-500.0,0.00013972,2]
[407172531,1772467863016,-500.0,0.00013972,2]